bitfinex-derivatives/quotes_BTCF0:USTF0_20250315
["timestamp","ask_amount","ask_price","bid_price","bid_amount"]
[1742051202918,0.3985729,84343.0,84342.0,0.28481801]
[1742051204318,0.1185729,84343.0,84342.0,0.28481801]
[1742051205212,0.1234857,84345.0,84344.0,0.1185715]
[1742051205524,0.4034857,84345.0,84344.0,0.1185715]
[1742051210134,0.1185729,84343.0,84342.0,0.16524771]
[1742051210324,0.3585729,84343.0,84342.0,0.16524771]
[1742051213539,0.3585729,84343.0,84342.0,0.19814771]
[1742051230857,0.3585729,84343.0,84342.0,0.07957341]
[1742051231251,0.3585729,84343.0,84342.0,0.19814771]
[1742051234552,0.3585729,84343.0,84342.0,0.01447341]
[1742051234871,0.1185828,84336.0,84335.0,0.1203619]
[1742051235661,0.1515828,84336.0,84335.0,0.1203619]
[1742051235865,0.3815828,84336.0,84335.0,0.13850746]
[1742051236054,0.1535828,84336.0,84335.0,0.13850746]
[1742051236247,0.1864828,84336.0,84335.0,0.16960746]
[1742051236865,0.4564828,84336.0,84335.0,0.16960746]
[1742051237359,0.4364828,84336.0,84335.0,0.16960746]
[1742051238667,0.4364828,84336.0,84335.0,0.05102406]
[1742051238968,0.0592951,84331.0,84329.0,0.1185914]
[1742051239150,0.6329902,84330.0,84329.0,0.1185914]
[1742051239353,0.8929902,84330.0,84329.0,0.1185914]
[1742051240953,0.8929902,84330.0,84329.0,0.1366141]
[1742051242565,0.8969902,84330.0,84329.0,0.1366141]
[1742051242965,0.8969902,84330.0,84329.0,0.1690141]
[1742051244166,0.8959902,84330.0,84329.0,0.1690141]
[1742051244868,0.8929902,84330.0,84329.0,0.1690141]
[1742051245166,0.8969902,84330.0,84329.0,0.1690141]
[1742051249773,0.8969902,84330.0,84329.0,0.1366141]
[1742051251764,0.8969902,84330.0,84329.0,0.1678141]
[1742051256078,0.8969902,84330.0,84329.0,0.1366141]
[1742051257071,0.8969902,84330.0,84329.0,0.0180227]
[1742051257272,0.1185926,84329.0,84328.0,0.1518939]
[1742051257483,0.3785926,84329.0,84328.0,0.1518939]
[1742051257671,0.4420926,84329.0,84328.0,0.1359744]
[1742051258274,0.4420926,84329.0,84328.0,0.0173805]
[1742051258479,0.118594,84328.0,84327.0,0.06844822]
[1742051258781,0.493674,84328.0,84327.0,0.06844822]
[1742051258981,0.554374,84328.0,84327.0,0.06844822]
[1742051259685,0.554374,84328.0,84327.0,0.08637898]
[1742051260083,0.294374,84328.0,84327.0,0.08637898]
[1742051260285,0.544374,84328.0,84327.0,0.11867898]
[1742051261085,0.547374,84328.0,84327.0,0.11867898]
[1742051261584,0.297374,84328.0,84327.0,0.11867898]
[1742051261997,0.567374,84328.0,84327.0,0.11867898]
[1742051263486,0.567374,84328.0,84327.0,0.05938198]
[1742051263688,0.567374,84328.0,84327.0,0.02708198]
[1742051264489,0.567374,84328.0,84327.0,0.14567738]
[1742051265282,0.567374,84328.0,84327.0,0.02708198]
[1742051265584,0.567374,84328.0,84327.0,0.14567738]
[1742051266182,0.567374,84328.0,84327.0,0.21087738]
[1742051267586,0.567374,84328.0,84327.0,0.20190406]
[1742051273077,0.452294,84328.0,84327.0,0.20190406]
[1742051273283,0.566854,84328.0,84327.0,0.20190406]
[1742051279794,0.296654,84328.0,84327.0,0.20190406]
[1742051281089,0.566654,84328.0,84327.0,0.20190406]
[1742051281596,0.296654,84328.0,84327.0,0.20190406]
[1742051281796,0.526654,84328.0,84327.0,0.20190406]
[1742051289109,0.526654,84328.0,84327.0,0.08330866]
[1742051289607,0.526654,84328.0,84327.0,0.20190406]
[1742051290310,0.526654,84328.0,84327.0,0.08330866]
[1742051290604,0.526654,84328.0,84327.0,0.20190406]
[1742051291410,0.526654,84328.0,84327.0,0.16930406]
[1742051291799,0.526654,84328.0,84327.0,0.01810866]
[1742051292701,0.526654,84328.0,84327.0,0.04970866]
[1742051292904,0.526654,84328.0,84327.0,0.08110866]
[1742051293600,0.526654,84328.0,84327.0,0.01810866]
[1742051294210,0.526654,84328.0,84327.0,1e-08]
[1742051294399,0.1186095,84318.0,84317.0,0.1186092]
[1742051294600,0.1186137,84314.0,84313.0,0.2724942]
[1742051294800,0.3986137,84314.0,84313.0,0.36295446]
[1742051295410,0.3986137,84314.0,84313.0,0.24433936]
[1742051295600,0.3986137,84314.0,84313.0,0.23551521]
[1742051295800,0.4300137,84314.0,84313.0,0.23551521]
[1742051296207,0.4300137,84314.0,84313.0,0.23651521]
[1742051297205,0.4300137,84314.0,84313.0,0.23751521]
[1742051297597,0.4300137,84314.0,84313.0,0.02432811]
[1742051300214,0.4300137,84314.0,84313.0,0.002]
[1742051300405,0.1186236,84307.0,84306.0,0.479424]
[1742051300604,0.5031036,84307.0,84306.0,0.50206626]
[1742051301214,0.5658036,84307.0,84306.0,0.50206626]
[1742051301515,0.2957636,84307.0,84306.0,0.50206626]
[1742051301713,0.2957636,84307.0,84306.0,0.59576626]
[1742051302709,0.2957636,84307.0,84306.0,0.59776626]
[1742051302905,0.2957636,84307.0,84306.0,0.60076626]
[1742051311225,0.2957636,84307.0,84306.0,0.59876626]
[1742051311527,0.2957636,84307.0,84306.0,0.56836626]
[1742051312526,0.2957636,84307.0,84306.0,0.56536626]
[1742051314016,0.2957636,84307.0,84306.0,0.20456626]
[1742051315312,0.2957636,84307.0,84306.0,0.14126626]
[1742051315520,0.5257636,84307.0,84306.0,0.14126626]
[1742051315712,0.5257636,84307.0,84306.0,0.02264226]
[1742051316024,0.118625,84306.0,84305.0,0.0001779]
[1742051316322,0.421625,84306.0,84305.0,0.02228899]
[1742051316505,0.487225,84306.0,84305.0,0.02228899]
[1742051317107,0.488225,84306.0,84305.0,0.02228899]
[1742051317313,0.488225,84306.0,84305.0,0.14091539]
[1742051318126,0.488225,84306.0,84305.0,0.02228899]
[1742051320325,0.488225,84306.0,84305.0,0.14091539]
[1742051321016,0.488225,84306.0,84305.0,0.17401539]
[1742051324229,0.488225,84306.0,84305.0,0.14091539]
[1742051324724,0.488225,84306.0,84305.0,0.17241539]
[1742051324916,0.299945,84306.0,84305.0,0.17241539]
[1742051325423,0.299945,84306.0,84305.0,0.20421539]
[1742051334423,0.185225,84306.0,84305.0,0.47421539]
[1742051335021,0.185225,84306.0,84305.0,0.20421539]
[1742051335227,0.185225,84306.0,84305.0,0.48421539]
[1742051335427,0.185225,84306.0,84305.0,0.20421539]
[1742051335924,0.185225,84306.0,84305.0,0.44421539]
[1742051336233,0.185225,84306.0,84305.0,0.20421539]
[1742051336425,0.185225,84306.0,84305.0,0.45421539]
[1742051336630,0.0666,84306.0,84305.0,0.69421539]
[1742051336827,0.0594791,84322.0,84321.0,0.1186039]
[1742051337031,0.0694791,84322.0,84321.0,0.1186039]
[1742051337226,0.0101779,84322.0,84321.0,0.1186039]
[1742051337441,0.0001779,84322.0,84321.0,0.1186039]
[1742051337933,0.0001779,84322.0,84321.0,0.3786039]
[1742051338141,0.0001779,84322.0,84321.0,0.1186039]
[1742051338326,0.0325779,84322.0,84321.0,0.1802039]
[1742051339131,0.0355779,84322.0,84321.0,0.1802039]
[1742051339635,0.1541803,84322.0,84321.0,0.1802039]
[1742051340630,0.1531803,84322.0,84321.0,0.1802039]
[1742051341227,0.1186053,84320.0,84319.0,0.0593026]
[1742051341440,0.1186095,84317.0,84316.0,0.4794095]
[1742051341744,0.1186109,84316.0,84315.0,0.1186119]
[1742051341927,0.4603109,84316.0,84315.0,0.1186119]
[1742051342123,0.1186137,84314.0,84313.0,0.1779202]
[1742051342338,0.1186165,84312.0,84311.0,0.5387255]
[1742051342527,0.3486165,84312.0,84311.0,0.5387255]
[1742051342938,0.4421165,84312.0,84311.0,0.5387255]
[1742051343331,0.4411165,84312.0,84311.0,0.5387255]
[1742051343943,0.4411165,84312.0,84311.0,0.3608]
[1742051344128,0.4431165,84312.0,84311.0,0.3608]
[1742051344825,0.2131165,84312.0,84311.0,0.4794179]
[1742051345130,0.0955,84312.0,84311.0,0.4794179]
[1742051345331,0.2141165,84312.0,84311.0,0.5423179]
[1742051345530,0.0641,84312.0,84311.0,0.5423179]
[1742051346648,0.0592991,84325.0,84321.0,0.1186039]
[1742051346937,0.1187803,84322.0,84321.0,0.4794039]
[1742051347440,0.1187803,84322.0,84321.0,0.5102039]
[1742051348040,0.1187803,84322.0,84321.0,0.5417039]
[1742051348441,0.1516803,84322.0,84321.0,0.5417039]
[1742051349640,0.1546803,84322.0,84321.0,0.5417039]
[1742051350237,0.1856803,84322.0,84321.0,0.5417039]
[1742051351440,0.1546803,84322.0,84321.0,0.5417039]
[1742051351642,0.0360779,84322.0,84321.0,0.5417039]
[1742051352733,0.0360779,84322.0,84321.0,0.8017039]
[1742051352938,0.1546803,84322.0,84321.0,0.5417039]
[1742051356950,0.0360779,84322.0,84321.0,0.5417039]
[1742051357541,0.0670779,84322.0,84321.0,0.5417039]
[1742051358144,0.1856803,84322.0,84321.0,0.5417039]
[1742051359649,0.0670779,84322.0,84321.0,0.5417039]
[1742051359852,0.0670779,84322.0,84321.0,1.0217039]
[1742051360445,0.0670779,84322.0,84321.0,0.7717039]
[1742051361045,0.0670779,84322.0,84321.0,0.7917039]
[1742051361246,0.0670779,84322.0,84321.0,1.0617039]
[1742051361447,0.1185809,84338.0,84337.0,0.1185814]
[1742051361647,0.1585809,84338.0,84337.0,0.1185814]
[1742051362751,0.2233809,84338.0,84337.0,0.1185814]
[1742051363839,0.1640903,84338.0,84337.0,0.1185814]
[1742051364044,0.1640903,84338.0,84337.0,0.5585814]
[1742051364045,0.0332,84338.0,84337.0,0.5585814]
[1742051364347,0.0332,84338.0,84337.0,0.4085814]
[1742051364650,0.0332,84338.0,84337.0,0.5985814]
[1742051364841,0.0332,84338.0,84337.0,0.6625814]
[1742051365457,0.0332,84338.0,84337.0,0.69064567]
[1742051367556,0.003,84338.0,84337.0,0.69064567]
[1742051367749,0.0306,84343.0,84340.0,0.0592879]
[1742051368059,0.0306,84343.0,84342.0,0.4793743]
[1742051368355,0.0306,84343.0,84342.0,1.0093743]
[1742051368557,0.0306,84343.0,84342.0,1.0755743]
[1742051368946,0.0306,84343.0,84342.0,0.5455743]
[1742051369355,0.0306,84343.0,84342.0,0.7855743]
[1742051369756,0.0306,84343.0,84342.0,0.5455743]
[1742051369956,0.0306,84343.0,84342.0,0.7955743]
[1742051370549,0.0306,84343.0,84342.0,1.1703343]
[1742051370759,0.0306,84343.0,84342.0,0.9103343]
[1742051370961,0.0306,84343.0,84342.0,0.6603343]
[1742051371255,0.0306,84343.0,84342.0,0.9203343]
[1742051371958,0.0306,84343.0,84342.0,0.6603343]
[1742051372549,0.0306,84343.0,84342.0,0.9103343]
[1742051372750,0.0306,84343.0,84342.0,1.1703343]
[1742051373561,0.0306,84343.0,84342.0,0.9103343]
[1742051373761,0.0306,84343.0,84342.0,1.1503343]
[1742051375963,0.0306,84343.0,84342.0,0.9103343]
[1742051376167,0.0306,84343.0,84342.0,1.1503343]
[1742051376353,0.0306,84343.0,84342.0,0.9103343]
[1742051378263,0.0306,84343.0,84342.0,0.6603343]
[1742051378964,0.0306,84343.0,84342.0,1.1703343]
[1742051381855,0.0306,84343.0,84342.0,1.1503343]
[1742051383267,0.0306,84343.0,84342.0,0.9003343]
[1742051383467,0.0306,84343.0,84342.0,1.1503343]
[1742051384654,0.0306,84343.0,84342.0,0.7855743]
[1742051384859,0.0306,84343.0,84342.0,0.8998943]
[1742051386069,0.0306,84343.0,84342.0,0.6598943]
[1742051386261,0.0306,84343.0,84342.0,0.6266943]
[1742051386458,0.1491729,84343.0,84342.0,0.4793743]
[1742051389767,0.0306,84343.0,84342.0,0.4793743]
[1742051397173,0.0306,84343.0,84342.0,0.9593743]
[1742051397374,0.0306,84343.0,84342.0,0.7093743]
[1742051397578,0.0306,84343.0,84342.0,0.9693743]
[1742051398285,0.0306,84343.0,84342.0,0.4793743]
[1742051398486,0.0306,84343.0,84342.0,0.9793743]
[1742051398678,0.0306,84343.0,84342.0,0.9693743]
[1742051399983,0.0306,84343.0,84342.0,0.4793743]
[1742051401488,0.0306,84343.0,84342.0,0.7693743]
[1742051401890,0.0306,84343.0,84342.0,1.0193743]
[1742051402084,0.0306,84343.0,84342.0,0.7693743]
[1742051402390,0.0306,84343.0,84342.0,1.0293743]
[1742051402885,0.0306,84345.0,84344.0,0.1185715]
[1742051403087,0.0306,84345.0,84344.0,0.6385715]
[1742051403689,0.0306,84345.0,84344.0,0.7020715]
[1742051405990,0.0631,84345.0,84344.0,0.7020715]
[1742051406783,0.0631,84345.0,84344.0,0.69088796]
[1742051407089,0.0631,84345.0,84344.0,0.19088796]
[1742051407397,0.0631,84345.0,84344.0,0.45088796]
[1742051407895,0.0631,84345.0,84344.0,0.00881646]
[1742051408085,0.4616701,84345.0,84344.0,0.1185715]
[1742051424305,0.4616701,84345.0,84339.0,0.0617]
[1742051424306,0.4023857,84345.0,84329.0,0.272661]
[1742051424506,0.1185799,84338.0,84329.0,0.213365]
[1742051424691,0.1778776,84336.0,84335.0,0.1185841]
[1742051424897,0.3978776,84336.0,84335.0,0.1426695]
[1742051425310,0.4628776,84336.0,84335.0,0.0240854]
[1742051425503,0.1185842,84335.0,84334.0,0.1185856]
[1742051425812,0.1185884,84333.0,84332.0,0.1185874]
[1742051426302,0.1835884,84333.0,84332.0,0.1185874]
[1742051426904,0.1835884,84333.0,84332.0,0.14310384]
[1742051429196,0.1835884,84333.0,84332.0,0.17550384]
[1742051429704,0.1835884,84333.0,84332.0,0.20830384]
[1742051467429,0.1185912,84330.0,84329.0,0.0001779]
[1742051467733,0.3585912,84330.0,84329.0,0.0001779]
[1742051468233,0.3585912,84330.0,84329.0,0.1187705]
[1742051468431,0.4531912,84330.0,84329.0,0.1187705]
[1742051468637,0.4531912,84330.0,84329.0,0.1841705]
[1742051469024,0.4531912,84330.0,84329.0,0.20893664]
[1742051470432,0.4531912,84330.0,84329.0,0.14353664]
[1742051471922,0.4531912,84330.0,84329.0,0.20953664]
[1742051478330,0.4531912,84330.0,84329.0,0.20953664]
[1742051480544,0.3039,84330.0,84329.0,0.20953664]
[1742051480836,0.11384,84349.0,84343.0,0.1185729]
[1742051481042,0.6379484,84344.0,84343.0,0.1185729]
[1742051482135,0.5193727,84344.0,84343.0,0.1810729]
[1742051482636,0.5821727,84344.0,84343.0,0.1810729]
[1742051483541,0.5228863,84344.0,84343.0,0.1810729]
[1742051484732,0.1620863,84344.0,84343.0,0.1810729]
[1742051484941,0.1028,84344.0,84343.0,0.1810729]
[1742051485133,0.2213715,84344.0,84343.0,0.1810729]
[1742051486529,0.00017754,84346.0,84345.0,0.1185701]
[1742051486735,0.00017754,84346.0,84345.0,0.6085701]
[1742051487140,0.00017754,84346.0,84345.0,0.3885701]
[1742051487342,0.00017754,84346.0,84345.0,0.6585701]
[1742051487940,0.00017754,84346.0,84345.0,0.3885701]
[1742051488246,0.00017754,84346.0,84345.0,0.6485701]
[1742051489935,0.00017754,84346.0,84345.0,0.6385701]
[1742051491037,0.00017754,84346.0,84345.0,0.3885701]
[1742051491644,0.00017754,84346.0,84345.0,0.1185701]
[1742051493142,0.00017754,84346.0,84345.0,0.3585701]
[1742051493341,0.00017754,84346.0,84345.0,0.3985701]
[1742051493542,0.00017754,84346.0,84345.0,0.6385701]
[1742051494051,0.00017754,84346.0,84345.0,0.64756275]
[1742051494840,0.00177908,84350.0,84349.0,0.1185645]
[1742051495041,0.00177908,84350.0,84349.0,0.9693645]
[1742051495749,0.00177908,84350.0,84349.0,1.0340645]
[1742051496347,0.00177908,84350.0,84349.0,1.1478645]
[1742051496648,0.00177908,84350.0,84349.0,0.6578645]
[1742051497039,0.00177908,84350.0,84349.0,0.5440645]
[1742051497536,0.03177908,84350.0,84349.0,0.5440645]
[1742051498855,0.15034218,84350.0,84349.0,0.5440645]
[1742051499752,0.03177908,84350.0,84349.0,0.5440645]
[1742051502049,0.15034218,84350.0,84349.0,0.5440645]
[1742051502255,0.18174218,84350.0,84349.0,0.5440645]
[1742051502568,0.06317908,84350.0,84349.0,0.5440645]
[1742051508355,0.06317908,84350.0,84349.0,0.8140645]
[1742051508660,0.06317908,84350.0,84349.0,0.8240645]
[1742051509366,0.06317908,84350.0,84349.0,1.0940645]
[1742051509983,0.06317908,84350.0,84349.0,0.5440645]
[1742051510164,0.06317908,84350.0,84349.0,1.0545645]
[1742051510466,0.06317908,84350.0,84349.0,0.8345645]
[1742051510855,0.06317908,84350.0,84349.0,1.0745645]
[1742051511364,0.06317908,84350.0,84349.0,1.0845645]
[1742051511967,0.06317908,84350.0,84349.0,0.8345645]
[1742051512167,0.06317908,84350.0,84349.0,1.0645645]
[1742051512369,0.06317908,84350.0,84349.0,0.8345645]
[1742051512866,0.06317908,84350.0,84349.0,1.1345645]
[1742051513064,0.06317908,84350.0,84349.0,0.8145645]
[1742051513268,0.06317908,84350.0,84349.0,1.0845645]
[1742051513669,0.06317908,84350.0,84349.0,1.0540645]
[1742051513962,0.06317908,84350.0,84349.0,1.0140645]
[1742051514171,0.06317908,84350.0,84349.0,1.0340645]
[1742051515166,0.06317908,84350.0,84349.0,0.5440645]
[1742051515364,0.06317908,84350.0,84349.0,0.7840645]
[1742051515668,0.06317908,84350.0,84349.0,1.0340645]
[1742051516664,0.06317908,84350.0,84349.0,1.0840645]
[1742051517169,0.06317908,84350.0,84349.0,1.3340645]
[1742051517363,0.06317908,84350.0,84349.0,1.3640645]
[1742051517673,0.06317908,84350.0,84349.0,1.0840645]
[1742051518567,0.06317908,84350.0,84349.0,1.0440645]
[1742051518773,0.0614,84350.0,84349.0,0.8240645]
[1742051519596,0.0614,84350.0,84349.0,1.0840645]
[1742051520165,0.0614,84350.0,84349.0,0.8240645]
[1742051520474,0.0614,84350.0,84349.0,0.5440645]
[1742051521058,0.1799631,84350.0,84349.0,0.5440645]
[1742051521269,0.0614,84350.0,84349.0,0.5440645]
[1742051522475,0.0614,84350.0,84349.0,0.8240645]
[1742051522667,0.0614,84350.0,84349.0,0.5440645]
[1742051523069,0.0614,84350.0,84349.0,0.8040645]
[1742051523266,0.0614,84350.0,84349.0,1.0640645]
[1742051523467,0.0614,84350.0,84349.0,1.0440645]
[1742051523670,0.0614,84350.0,84349.0,1.0340645]
[1742051524264,0.0614,84350.0,84349.0,0.5440645]
[1742051524466,0.0614,84350.0,84349.0,1.0540645]
[1742051525023,0.0614,84350.0,84349.0,0.5440645]
[1742051525680,0.0614,84350.0,84349.0,0.8140645]
[1742051525882,0.0614,84350.0,84349.0,0.5440645]
[1742051526773,0.0614,84350.0,84349.0,0.7940645]
[1742051527467,0.0614,84350.0,84349.0,0.5440645]
[1742051528079,0.0614,84350.0,84349.0,0.8040645]
[1742051528299,0.0614,84350.0,84349.0,0.7940645]
[1742051528978,0.0614,84350.0,84349.0,0.5440645]
[1742051529671,0.1492548,84356.0,84355.0,0.1185561]
[1742051529672,0.0307,84356.0,84355.0,0.1185561]
[1742051529875,0.0307,84356.0,84355.0,0.6485561]
[1742051531067,0.0307,84356.0,84355.0,0.6815561]
[1742051531471,0.0307,84356.0,84355.0,0.7115561]
[1742051532388,0.0307,84356.0,84355.0,0.4315561]
[1742051532591,0.0307,84356.0,84355.0,0.6415561]
[1742051532783,0.0307,84356.0,84355.0,0.1515561]
[1742051532970,0.0307,84356.0,84355.0,0.4115561]
[1742051533171,0.0622,84356.0,84355.0,0.4115561]
[1742051533378,0.0622,84356.0,84355.0,0.6615561]
[1742051533684,0.0315,84356.0,84355.0,0.6615561]
[1742051537783,0.11376,84380.0,84377.0,0.1185223]
[1742051537980,0.1777937,84378.0,84377.0,0.1185223]
[1742051538169,0.4477937,84378.0,84377.0,0.1185223]
[1742051539283,0.27,84378.0,84377.0,0.1777842]
[1742051539485,0.27,84378.0,84377.0,0.2420842]
[1742051539486,0.3885237,84378.0,84377.0,0.2420842]
[1742051540682,0.3885237,84378.0,84377.0,0.2103842]
[1742051540984,0.3885237,84378.0,84377.0,0.19784705]
[1742051541225,0.3885237,84378.0,84377.0,0.02006285]
[1742051541387,0.1185308,84373.0,84372.0,0.420066]
[1742051541586,0.3885308,84373.0,84372.0,0.420066]
[1742051541781,0.1185336,84371.0,84370.0,0.00017779]
[1742051541984,0.3485336,84371.0,84370.0,0.00017779]
[1742051542486,0.4118336,84371.0,84370.0,0.00017779]
[1742051542869,0.7726336,84371.0,84370.0,0.02019658]
[1742051543073,0.7726336,84371.0,84370.0,0.00017779]
[1742051543770,0.7726336,84371.0,84370.0,0.11871279]
[1742051544175,0.7726336,84371.0,84370.0,0.13832304]
[1742051545281,0.4118336,84371.0,84370.0,0.13832304]
[1742051546594,0.4118336,84371.0,84370.0,0.20192304]
[1742051550893,0.0633,84371.0,84370.0,0.83272304]
[1742051551079,0.1800281,84375.0,84374.0,0.1185294]
[1742051551277,0.1900281,84375.0,84374.0,0.1185294]
[1742051551885,0.1900281,84375.0,84374.0,0.1808294]
[1742051552590,0.0615,84375.0,84374.0,0.1808294]
[1742051552887,0.0592593,84382.0,84379.0,0.0592605]
[1742051553091,0.1499195,84381.0,84380.0,0.239881]
[1742051553288,0.2300195,84381.0,84380.0,0.239881]
[1742051555991,0.2300195,84381.0,84380.0,0.0592601]
[1742051556891,0.2300195,84381.0,84380.0,0.1217601]
[1742051557791,0.1800195,84381.0,84380.0,0.1217601]
[1742051557989,0.4500195,84381.0,84380.0,0.1217601]
[1742051561301,0.4400195,84381.0,84380.0,0.1217601]
[1742051562895,0.4400195,84381.0,84380.0,0.0625]
[1742051563703,0.4400195,84381.0,84380.0,0.1810209]
[1742051564001,0.4400195,84381.0,84380.0,0.0625]
[1742051564401,0.4400195,84381.0,84380.0,0.1810209]
[1742051565296,0.4400195,84381.0,84380.0,0.0625]
[1742051567398,0.4400195,84381.0,84380.0,0.0301]
[1742051567695,0.0592611,84379.0,84370.0,0.08065514]
[1742051567901,0.1185336,84371.0,84370.0,0.07905514]
[1742051568100,0.3485336,84371.0,84370.0,0.07905514]
[1742051568697,0.4123336,84371.0,84370.0,0.07905514]
[1742051571391,0.4123336,84371.0,84370.0,0.14295514]
[1742051573094,0.1823336,84371.0,84370.0,0.14295514]
[1742051573392,0.4323336,84371.0,84370.0,0.14295514]
[1742051573592,0.1823336,84371.0,84370.0,0.14295514]
[1742051574798,0.4623336,84371.0,84370.0,0.14295514]
[1742051576713,0.1823336,84371.0,84370.0,0.14295514]
[1742051576892,0.4423336,84371.0,84370.0,0.14295514]
[1742051577301,0.1823336,84371.0,84370.0,0.14295514]
[1742051577614,0.4123336,84371.0,84370.0,0.14295514]
[1742051578190,0.4123336,84371.0,84370.0,0.01978804]
[1742051579599,0.4123336,84371.0,84370.0,0.13832304]
[1742051579796,0.4123336,84371.0,84370.0,0.20372304]
[1742051592416,0.4123336,84371.0,84370.0,0.08518804]
[1742051592921,0.1185448,84363.0,84362.0,0.3608]
[1742051593124,0.3485448,84363.0,84362.0,0.3608]
[1742051594322,0.4120448,84363.0,84362.0,0.3608]
[1742051595826,0.4120448,84363.0,84362.0,0.02032002]
[1742051596122,0.1185476,84361.0,84360.0,0.0635]
[1742051596319,0.3985476,84361.0,84360.0,0.0635]
[1742051596654,0.1185561,84355.0,84354.0,0.00017779]
[1742051596813,0.3585561,84355.0,84354.0,0.00017779]
[1742051597824,0.4197561,84355.0,84354.0,0.00017779]
[1742051598411,0.4197561,84355.0,84354.0,0.03037779]
[1742051598726,0.4197561,84355.0,84354.0,0.16863245]
[1742051598926,0.4197561,84355.0,84354.0,0.20063245]
[1742051599925,0.2702,84355.0,84354.0,0.23333245]
[1742051600132,0.3887561,84355.0,84354.0,0.23333245]
[1742051600326,0.3585561,84355.0,84354.0,0.23333245]
[1742051600527,0.24,84355.0,84354.0,0.23333245]
[1742051600720,0.1490549,84356.0,84355.0,0.1185561]
[1742051600933,0.1490549,84356.0,84355.0,0.1807561]
[1742051601625,0.1185549,84356.0,84355.0,0.1807561]
[1742051605531,0.1185529,84358.0,84357.0,0.1185518]
[1742051605933,0.0649,84359.0,84358.0,0.1185518]
[1742051606827,0.2322979,84370.0,84369.0,0.1185336]
[1742051607023,0.3215662,84370.0,84369.0,0.1185336]
[1742051607332,0.2078062,84370.0,84369.0,0.1185336]
[1742051608119,0.1498683,84370.0,84369.0,0.1185336]
[1742051621674,0.1185364,84369.0,84367.0,0.0592689]
[1742051621838,0.1799378,84368.0,84367.0,0.0592689]
[1742051622035,0.1185406,84366.0,84365.0,0.0592703]
[1742051622237,0.3485406,84366.0,84365.0,0.0592703]
[1742051624535,0.3485406,84366.0,84365.0,0.0906703]
[1742051627337,0.3485406,84366.0,84365.0,0.0314]
[1742051627637,0.3485406,84366.0,84365.0,0.149942]
[1742051628753,0.1185561,84357.0,84356.0,0.1778242]
[1742051628943,0.3685561,84357.0,84356.0,0.1778242]
[1742051629644,0.4085561,84357.0,84356.0,0.1778242]
[1742051629845,0.1185561,84357.0,84356.0,0.1778242]
[1742051630155,0.1841561,84357.0,84356.0,0.1778242]
[1742051630551,0.1841561,84357.0,84356.0,0.2409242]
[1742051633710,0.4241561,84357.0,84356.0,0.2409242]
[1742051633853,0.1841561,84357.0,84356.0,0.2409242]
[1742051636148,0.4541561,84357.0,84356.0,0.2409242]
[1742051636956,0.1841561,84357.0,84356.0,0.2409242]
[1742051637664,0.4141561,84357.0,84356.0,0.2409242]
[1742051640463,0.0592774,84356.0,84345.0,0.00899265]
[1742051640660,0.210432,84356.0,84355.0,0.1506561]
[1742051640851,0.480432,84356.0,84355.0,0.1506561]
[1742051641556,0.480432,84356.0,84355.0,0.1815561]
[1742051642253,0.480432,84356.0,84355.0,0.063]
[1742051642454,0.480432,84356.0,84355.0,0.1815561]
[1742051643257,0.427832,84356.0,84355.0,0.1815561]
[1742051644467,0.0592755,84359.0,84357.0,0.1185532]
[1742051644654,0.2322676,84362.0,84361.0,0.0592731]
[1742051644861,0.3985476,84362.0,84361.0,0.1209731]
[1742051645055,0.3985476,84362.0,84361.0,0.2395207]
[1742051650796,0.11872229,84364.0,84363.0,0.1185448]
[1742051654669,0.14872229,84364.0,84363.0,0.1185448]
[1742051658768,0.18092229,84364.0,84363.0,0.1185448]
[1742051666175,0.39092229,84364.0,84363.0,0.1185448]
[1742051676699,0.39092229,84364.0,84363.0,0.1502448]
[1742051681903,0.39092229,84364.0,84363.0,0.0317]
[1742051682704,0.1185561,84355.0,84352.0,0.0592795]
[1742051682893,0.3985561,84355.0,84354.0,0.1185575]
[1742051683497,0.4289561,84355.0,84354.0,0.1185575]
[1742051683805,0.4289561,84355.0,84354.0,0.14192659]
[1742051684001,0.4601561,84355.0,84354.0,0.17322659]
[1742051695707,0.1801561,84355.0,84354.0,0.17322659]
[1742051696018,0.4601561,84355.0,84354.0,0.17322659]
[1742051696220,0.118555,84356.0,84354.0,0.17322659]
[1742051696556,0.118555,84356.0,84355.0,0.1815561]
[1742051696816,0.400455,84356.0,84355.0,0.1815561]
[1742051697018,0.400455,84356.0,84355.0,0.2139561]
[1742051697208,0.150455,84356.0,84355.0,0.2139561]
[1742051698316,0.0319,84356.0,84355.0,0.2139561]
[1742051698509,0.1185479,84361.0,84360.0,0.118549]
[1742051698709,0.3785479,84361.0,84360.0,0.118549]
[1742051700016,0.2929,84361.0,84360.0,0.118549]
[1742051700418,0.0329,84361.0,84360.0,0.118549]
[1742051701121,0.00017779,84364.0,84363.0,0.1185448]
[1742051702210,0.11872119,84364.0,84363.0,0.1185448]
[1742051702824,0.00017779,84364.0,84363.0,0.1185448]
[1742051703126,0.11872119,84364.0,84363.0,0.1185448]
[1742051703524,0.00017779,84364.0,84363.0,0.1185448]
[1742051703928,0.03027779,84364.0,84363.0,0.1185448]
[1742051705124,0.03027779,84364.0,84363.0,0.1195448]
[1742051705125,0.00017779,84364.0,84363.0,0.1195448]
[1742051706222,0.0303,84372.0,84371.0,0.1185336]
[1742051707031,0.0907625,84380.0,84379.0,0.1185223]
[1742051707221,0.4077905,84380.0,84379.0,0.1185223]
[1742051707420,0.4077905,84380.0,84379.0,0.14126837]
[1742051707822,0.4400905,84380.0,84379.0,0.14126837]
[1742051708636,0.4724905,84380.0,84379.0,0.14126837]
[1742051708946,0.1185223,84379.0,84378.0,0.118523]
[1742051709131,0.3885223,84379.0,84378.0,0.118523]
[1742051709318,0.4209223,84379.0,84378.0,0.118523]
[1742051711630,0.4209223,84379.0,84378.0,0.14143921]
[1742051714729,0.4510223,84379.0,84378.0,0.17193921]
[1742051715731,0.4833223,84379.0,84378.0,0.17193921]
[1742051716337,0.4510223,84379.0,84378.0,0.17193921]
[1742051722743,0.3325,84379.0,84378.0,0.17193921]
[1742051723041,0.3325,84379.0,84378.0,0.53273921]
[1742051723246,0.4510223,84379.0,84378.0,0.53273921]
[1742051723734,0.3325,84379.0,84378.0,0.53273921]
[1742051723930,0.4510223,84379.0,84378.0,0.53273921]
[1742051725832,0.4510223,84379.0,84378.0,0.17193921]
[1742051739053,0.3325,84379.0,84378.0,0.17193921]
[1742051745863,0.4510223,84379.0,84378.0,0.17193921]
[1742051746362,0.3325,84379.0,84378.0,0.17193921]
[1742051746763,0.4510223,84379.0,84378.0,0.17193921]
[1742051750767,0.3325,84379.0,84378.0,0.17193921]
[1742051752463,0.4510223,84379.0,84378.0,0.17193921]
[1742051777878,0.4510223,84379.0,84371.0,0.00017779]
[1742051777879,0.1185322,84372.0,84371.0,0.00017779]
[1742051778087,0.3885322,84372.0,84371.0,0.00017779]